[Event "FIDE WSTC-50-65 2022"]
[Site "Acqui Terme"]
[Date "2022.06.28"]
[Round "8.2"]
[White "Shabalov, Alexander"]
[Black "Varga, Zoltan"]
[Result "1/2-1/2"]
[ECO "B03"]
[WhiteElo "2504"]
[BlackElo "2395"]
[Annotator "TA"]
[PlyCount "99"]
[EventDate "2022.06.20"]
[EventType "team-tourn"]
[EventCountry "ITA"]
[SourceTitle "playchess.com"]
[Source "ChessBase"]
[SourceQuality "1"]
[TimeControl "40/5400+30:1800+30"]

{[%evp 14,99,22,18,17,18,14,13,48,45,53,52,38,58,65,35,121,120,123,122,123,121,133,134,137,100,112,62,55,38,44,43,137,141,138,117,149,74,75,88,105,104,100,44,101,83,50,7,5,0,80,5,5,21,12,0,0,0,27,10,3,-245,3,6,131,102,166,162,171,172,205,0,0,0,0,0,0,0,0,0,0,0,0,0,0,0,0,0]} 1. e4 {[%emt 0:01:00][%cal Be2e4,Be4e5][%mdl 32]} Nf6 {[%emt 0:01:00]} 2. e5 {[%emt 0:00:00]} Nd5 {[%emt 0:00:00]} 3. d4 {[%emt 0:00:00]} d6 {[%emt 0:00:00]} 4. c4 {[%emt 0:00:30]} Nb6 {[%emt 0:00:30]} 5. exd6 {[%emt 0:00:00]} cxd6 {[%emt 0:00:00]} 6. d5 {[%emt 0:00:00]} e5 {[%emt 0:00:00]} 7. Nc3 {[%emt 0:00:00]} Be7 {[%emt 0:00:30]} 8. Bd3 {[%emt 0:00:00]} Na6 {[%emt 0:00:30] B03: Alekhine's Defence: Four Pawns Attack.} 9. b3 {[%emt 0:06:30]} O-O {[%emt 0:05:30]} 10. Nge2 {[%emt 0:00:30]} Nc5 {[%emt 0:03:30]} 11. Bc2 {[%emt 0:00:30]} Bg4 {[%emt 0:00:00][%cal Oe5e4]} 12. O-O {[%emt 0:00:30]} Bg5 {[%emt 0:03:00] [#]} 13. h3 $146 {[%emt 0:08:30]} ({Predecessor:} 13. f3 Bh5 14. Ng3 Bg6 15. Nf5 Bxf5 16. Bxf5 g6 17. Bc2 f5 18. Bxg5 Qxg5 19. Qc1 {0-1 (55) Mrva,V (2128)-Mertanen,J (2318) Krakow 2010}) 13... Bxc1 {[%emt 0:12:30]} 14. hxg4 {[%emt 0:06:30]} Bb2 {[%emt 0:02:30]} (14... Bh6 $1 $14) 15. Rb1 $16 {[%emt 0:00:30]} Bxc3 {[%emt 0:00:00]} 16. Nxc3 {[%emt 0:00:00][%cal Be2c3,Bc3b5,Bb5d6][%mdl 32]} a5 {[%emt 0:00:00]} 17. g3 {[%emt 0:02:00]} Re8 {[%emt 0:04:30]} 18. Kg2 {[%emt 0:03:30]} Qf6 {[%emt 0:02:30]} 19. Qd2 {[%emt 0:02:30]} e4 {[%emt 0:14:30]} 20. Qe3 {[%emt 0:01:30] Prevents Qf3+.} (20. f4 $1 $16) 20... Qg6 $14 {[%emt 0:00:00]} 21. Nb5 {[%emt 0:23:30]} Re5 {[%emt 0:03:00]} 22. Rh1 {[%emt 0:04:30]} Qxg4 {[%emt 0:04:30]} (22... h6 $14) 23. Nxd6 $16 {[%emt 0:03:30]} Nbd7 {[%emt 0:00:30]} 24. Rh4 {[%emt 0:13:30]} Qg6 {[%emt 0:02:30] [#]} 25. Rbh1 $1 {[%emt 0:00:30] White is more active.} h6 {[%emt 0:00:00]} (25... Qxd6 $2 26. Rxh7 f5 27. Rh8+ Kf7 28. Rxa8 $18) 26. Nb5 {[%emt 0:00:00]} (26. Nxe4 $2 f5 27. f3 Rae8 $19) 26... b6 {[%emt 0:01:00]} 27. Nd4 {[%emt 0:03:00]} Rae8 {[%emt 0:03:30]} 28. Bd1 {[%emt 0:06:15]} (28. a3 $16) 28... Nf6 {[%emt 0:03:30]} (28... Rg5 $14) 29. Be2 {[%emt 0:06:58]} Kf8 {[%emt 0:06:30]} 30. R1h3 {[%emt 0:02:49]} Rg5 {[%emt 0:05:30]} 31. Rh1 {[%emt 0:01:39]} Kg8 {[%emt 0:07:07]} (31... Rge5 $11) 32. Rd1 {[%emt 0:00:32]} (32. a3 $16) 32... Ng4 $11 {[%emt 0:03:41]} 33. Bxg4 {[%emt 0:01:56]} Rxg4 {[%emt 0:00:03]} 34. Rdh1 {[%emt 0:01:23]} f5 {[%emt 0:04:31]} 35. Rxg4 {[%emt 0:01:10]} fxg4 {[%emt 0:00:04]} 36. Rd1 {[%emt 0:01:39]} Rf8 {[%emt 0:00:30]} 37. Rd2 $2 {[%emt 0:00:15] [#]} (37. Kg1 $11) 37... Qh5 $2 {[%emt 0:02:24]} (37... Rf3 $1 $19 {[%cal Rf3e3][%mdl 512]} 38. Qe2 (38. Nxf3 exf3+ 39. Kg1 Qb1+) (38. Qe1 Nd3) 38... Nd3 $1) 38. Kg1 {[%emt 0:00:30]} Qe5 {[%emt 0:06:34] [#]} (38... Rf3 $11 {remains equal.} 39. Qe1 (39. Nxf3 exf3 40. Qe1 Ne4 $11) 39... Rd3) 39. a3 $1 $16 {[%emt 0:00:35][%cal Ba2a3,Ba3b4][%mdl 32]} Qh5 {[%emt 0:01:06]} (39... Re8 $16 40. Rd1 Qh5) 40. b4 $18 {[%emt 0:00:00]} axb4 {[%emt 0:00:00]} 41. axb4 {[%emt 0:01:19]} Nd3 {[%emt 0:00:30] [#]} 42. Qxe4 {[%emt 0:02:30]} (42. Nc6 $1 $18 {[%cal Rc6e7]} Qf7 43. Re2 (43. Qxb6 Ra8 $14) (43. Qxe4 Nxf2 44. Ne7+ Kh8 $14)) 42... Re8 $11 {[%emt 0:02:30] The position is equal.} 43. Ne6 {[%emt 0:03:30]} ({Reject} 43. Qxd3 Re1+ 44. Qf1 Rxf1+ 45. Kxf1 Qh1+ 46. Ke2 Qe4+ 47. Kf1 Qb1+ 48. Ke2 Qe4+ 49. Kd1 Qb1+ 50. Ke2 Qxb4 $17) 43... Ne5 {[%emt 0:00:30] ...Nf3+ is the strong threat.} 44. Kf1 {[%emt 0:02:30][%cal Od5d6,Bg1f1,Bf1e2,Be2e3][%mdl 32]} (44. Nf4 {gets mated.} Nf3+ 45. Kg2 Qh2+ 46. Kf1 Rxe4 47. Ng6 Nxd2#) 44... Nf3 {[%emt 0:00:30] ( -> ...Qh1+)} 45. Rd1 {[%emt 0:00:30]} Ra8 {[%emt 0:03:30]} 46. Nf4 {[%emt 0:14:53]} Qh1+ {[%emt 0:04:30]} 47. Ke2 {[%emt 0:00:05]} Ra2+ {[%emt 0:00:00]} 48. Ke3 {[%emt 0:00:05] Threatening mate with Qe8+. Dancing on a razor blade.} Qxd1 {[%emt 0:00:00][%csl Ga2,Gf3][%cal Rd1d2]} 49. Qe8+ {[%emt 0:00:14]} Kh7 {[%emt 0:00:30][%csl Gf3][%cal Rd1d4]} 50. Qg6+ {[%emt 0:00:47] Weighted Error Value: White=0.28 (precise) /Black=0.28 (precise)} 1/2-1/2

[Event "FIDE WSTC-50-65 2022"]
[Site "Acqui Terme"]
[Date "2022.06.28"]
[Round "8.3"]
[White "Horvath, Peter"]
[Black "Novikov, Igor"]
[Result "1/2-1/2"]
[ECO "D31"]
[WhiteElo "2396"]
[BlackElo "2551"]
[Annotator "TA"]
[PlyCount "116"]
[EventDate "2022.06.20"]
[EventType "team-tourn"]
[EventCountry "ITA"]
[SourceTitle "playchess.com"]
[Source "ChessBase"]
[SourceQuality "1"]
[TimeControl "40/5400+30:1800+30"]

{[%evp 19,116,0,0,-8,-5,-9,-8,-10,-10,-10,-23,-10,0,0,0,0,0,4,20,27,110,-16,0,0,0,-4,41,57,55,35,37,14,32,17,72,13,34,0,0,-7,0,0,0,0,0,-7,0,0,0,0,0,0,0,0,0,0,0,0,82,108,83,14,20,3,77,62,222,229,193,145,141,132,117,134,132,100,1233,1490,1460,0,0,0,0,0,0,0,0,0,0,0,0,0,0,0,0,0,0,0,0]} 1. d4 {[%emt 0:01:00]} d5 {[%emt 0:01:00]} 2. c4 {[%emt 0:00:00]} e6 {[%emt 0:00:00]} 3. Nc3 {[%emt 0:00:00]} c6 {[%emt 0:00:00]} 4. e4 {[%emt 0:00:30]} dxe4 {[%emt 0:00:30]} 5. Nxe4 {[%emt 0:00:30]} Bb4+ {[%emt 0:00:00]} 6. Bd2 {[%emt 0:00:30][%cal Bc1d2,Bd2b4,Bb4c3][%mdl 32]} Qxd4 {[%emt 0:00:00]} 7. Bxb4 {[%emt 0:00:30]} Qxe4+ {[%emt 0:00:30]} 8. Be2 {[%emt 0:00:30]} Na6 {[%emt 0:00:30]} 9. Bc3 {[%emt 0:01:30]} Ne7 {[%emt 0:08:30]} 10. Bxg7 {[%emt 0:00:30]} Rg8 $1 {[%emt 0:00:30]} (10... Qxg2 $2 11. Bf6 Nd5 12. Bf3 Qxh1 13. Bxh1 $18) 11. Bf6 {[%emt 0:08:30] D31: Queen's Gambit Declined: Semi-Slav without ...Nf6 (+ Marshall Gambit and Noteboom) and Exchange Variation lines without ...Nf6.} Rg6 {[%emt 0:05:30]} 12. Bxe7 {[%emt 0:15:30]} Kxe7 {[%emt 0:00:00]} 13. Qd2 {[%emt 0:01:30]} e5 $1 {[%emt 0:12:00]} 14. Rd1 {[%emt 0:00:30]} Be6 {[%emt 0:03:30]} 15. f3 $1 {[%emt 0:02:30]} Qd4 {[%emt 0:09:30]} 16. Qxd4 {[%emt 0:04:30]} exd4 {[%emt 0:00:30]} 17. Kf2 {[%emt 0:01:30]} Rd8 {[%emt 0:04:30]} 18. Bd3 {[%emt 0:05:30]} Rg5 {[%emt 0:09:30]} 19. Ne2 {[%emt 0:12:30] [#]} Nb4 $146 {[%emt 0:06:30]} (19... Nc5 $11) ({Predecessor:} 19... h5 20. h4 Ra5 21. a3 Nc5 22. Bb1 Nb3 23. Bc2 Bxc4 24. Bxb3 Bxb3 25. Rxd4 Rxd4 26. Nxd4 {1-0 (38) Vaisser,A (2540)-Savchenko,S (2505) Moscow 1992}) 20. b3 {[%emt 0:20:30]} (20. Bxh7 $16 Bxc4 21. Rxd4 (21. Nxd4 Rgd5 $11) 21... Rxd4 22. Nxd4) 20... Ra5 {[%emt 0:07:30]} 21. Bb1 {[%emt 0:07:22]} c5 {[%emt 0:02:30]} 22. Rd2 {[%emt 0:00:50]} b5 {[%emt 0:08:30]} 23. cxb5 {[%emt 0:01:27]} h6 {[%emt 0:00:30]} 24. Rc1 {[%emt 0:02:09]} Rxb5 {[%emt 0:00:30]} 25. g4 {[%emt 0:07:05]} (25. a3 $5 {[%cal Ra3b4]} Na6 26. Bd3 $14) 25... Rd6 {[%emt 0:02:53]} 26. Nf4 {[%emt 0:00:50]} Ra6 {[%emt 0:02:32]} (26... Nd5 $11 27. Nxd5+ Bxd5) 27. Nd3 {[%emt 0:00:59]} (27. Re1 $16) 27... Raa5 {[%emt 0:00:35]} 28. Nxb4 {[%emt 0:00:25]} (28. Re1 {feels hotter.} Kd6 29. Nf4 Nd5 30. Nxd5 Kxd5 31. h3) 28... Rxb4 {[%emt 0:00:03]} 29. Bd3 {[%emt 0:01:14]} Kd6 {[%emt 0:00:35]} 30. Rdc2 {[%emt 0:00:49]} c4 {[%emt 0:03:58]} 31. Bxc4 {[%emt 0:01:34]} Bxc4 {[%emt 0:00:06]} 32. bxc4 $11 {[%emt 0:00:34][%mdl 4096] Endgame KRR-KRR} Kc5 {[%emt 0:02:33]} 33. Re2 {[%emt 0:01:47]} f6 {[%emt 0:00:55] Prevents Re5+.} 34. Re8 {[%emt 0:00:35]} Rxa2+ {[%emt 0:02:50]} 35. Kg3 {[%emt 0:00:02]} Ra6 {[%emt 0:01:38]} 36. Re7 {[%emt 0:00:56]} Rbb6 {[%emt 0:02:46]} 37. Kf4 {[%emt 0:00:42]} Re6 {[%emt 0:00:45]} 38. Rc7+ {[%emt 0:00:21]} Kd6 {[%emt 0:02:17]} (38... Rec6 $1 $11 {keeps the balance.} 39. Rb7 Rcb6) 39. Rh7 $16 {[%emt 0:00:41] White is more active.} Ra3 {[%emt 0:01:09]} 40. c5+ {[%emt 0:00:00]} (40. Rxh6 $16 {Hoping for Rh5.} a5 41. h4) 40... Kc6 $11 {[%emt 0:00:00]} 41. Rxh6 {[%emt 0:09:08] White wants to play Kf5.} Rc3 {[%emt 0:04:55]} (41... d3 $1 $11 42. Rd1 Kxc5) 42. Rd1 $16 {[%emt 0:04:20]} Kd5 {[%emt 0:04:30]} ({Not} 42... Kxc5 43. h4 $16) (42... d3 $1 $14) 43. h4 $1 $18 {[%emt 0:06:39][%cal Bh2h4,Bh4g5,Bg5g6][%mdl 32]} a5 {[%emt 0:03:30]} 44. g5 {[%emt 0:02:40]} ({White should try} 44. Rg6 $18) 44... Ree3 $16 {[%emt 0:05:13] [#]} 45. Rf1 {[%emt 0:03:12]} ({Don't play} 45. Rxf6 $6 Rxf3+ 46. Kg4 Rxf6 47. gxf6 Ke6 $11) 45... fxg5+ {[%emt 0:00:20]} 46. hxg5 {[%emt 0:00:04] Threatens to win with g6.} Re2 {[%emt 0:00:37]} 47. g6 {[%emt 0:02:12]} Rg2 $2 {[%emt 0:04:38][%mdl 8192] [#]} (47... d3 $16) 48. Rh5+ $1 $18 {[%emt 0:01:42]} Ke6 {[%emt 0:00:24]} 49. Rg5 $2 {[%emt 0:00:06]} (49. Rb1 $18 {Rb6+ would kill now.} Rxg6 50. Rb6+ Kf7 51. Rh7+ Kg8 52. Rd7 (52. Rxg6+ Kxh7 53. Rc6 a4 $11)) 49... Rxg5 $11 {[%emt 0:00:51] The position is equal.} 50. Kxg5 {[%emt 0:00:02]} Rxc5+ {[%emt 0:00:23] KR-KR} 51. Kh6 {[%emt 0:00:29]} Rc2 {[%emt 0:04:13] ...Kf6 is the strong threat.} 52. Rb1 {[%emt 0:03:44]} Rh2+ {[%emt 0:03:57]} 53. Kg5 {[%emt 0:01:11]} Rg2+ {[%emt 0:00:12]} 54. Kh6 {[%emt 0:01:08]} d3 {[%emt 0:01:49] aiming for ...d2.} 55. Rb6+ {[%emt 0:00:13]} Kf5 {[%emt 0:00:26] White must now prevent ...d2.} (55... Kd7 $5 {[%cal Rd3d2]} 56. Rb7+ Kd8 57. Rb8+ Ke7 58. Rb7+ Kd6 59. Rb6+ Ke7 60. Rb7+ Kd6 61. Rb6+ Ke7 62. Rb7+ $11) 56. Rb5+ {[%emt 0:00:14]} Kf6 {[%emt 0:00:05] ( -> ...Rh2+)} 57. Rb6+ {[%emt 0:00:17]} Kf5 {[%emt 0:00:03] Strongly threatening ...d2.} 58. Rb5+ {[%emt 0:00:06]} Kf6 {[%emt 0:00:18] Black escapes into a draw.  Weighted Error Value: White=0.22 (precise) /Black=0.18 (very precise)} 1/2-1/2

[Event "FIDE WSTC-50-65 2022"]
[Site "Acqui Terme"]
[Date "2022.06.28"]
[Round "8.5"]
[White "Adams, Michael"]
[Black "Sturua, Zurab"]
[Result "1-0"]
[ECO "C42"]
[WhiteElo "2698"]
[BlackElo "2530"]
[Annotator "TA"]
[PlyCount "81"]
[EventDate "2022.06.20"]
[EventType "team-tourn"]
[EventCountry "ITA"]
[SourceTitle "playchess.com"]
[Source "ChessBase"]
[SourceQuality "1"]
[TimeControl "40/5400+30:1800+30"]

{[%evp 13,81,22,4,5,9,0,14,11,0,0,25,25,28,24,21,14,41,34,21,38,29,20,216,204,256,248,280,298,280,184,233,221,206,214,206,206,331,337,492,478,460,444,453,368,345,355,332,333,383,399,385,370,335,262,328,284,277,270,265,262,343,350,366,336,452,323,323,300,335,314]} 1. e4 {[%emt 0:01:00]} e5 {[%emt 0:01:00]} 2. Nf3 {[%emt 0:00:00]} Nf6 {[%emt 0:00:00]} 3. Nxe5 {[%emt 0:01:00]} d6 {[%emt 0:00:00]} 4. Nf3 {[%emt 0:00:00]} Nxe4 {[%emt 0:00:30]} 5. Nc3 {[%emt 0:01:00]} Nxc3 {[%emt 0:00:30]} 6. dxc3 {[%emt 0:00:30]} Be7 {[%emt 0:00:30]} 7. Be3 {[%emt 0:00:00]} Nd7 {[%emt 0:04:30]} 8. Qd2 {[%emt 0:01:00] C42: Petroff Defence: 3 Nxe5 and unusual White 3rd moves.} O-O {[%emt 0:00:30]} 9. O-O-O {[%emt 0:00:00]} c6 {[%emt 0:01:30]} 10. Kb1 {[%emt 0:01:00] The position is equal.} d5 {[%emt 0:04:30]} 11. h4 {[%emt 0:08:30]} Nf6 {[%emt 0:18:30]} 12. Bd3 {[%emt 0:06:30]} Bg4 {[%emt 0:05:30] [#]} 13. Rde1 $146 {[%emt 0:01:30]} ({Predecessor:} 13. Rdg1 Ne4 14. Qe1 Nc5 15. Be2 Re8 16. Nd4 Bxe2 17. Qxe2 Bf6 18. Qf3 Ne4 19. g4 {½-½ (77) Lobanov,S (2505)-Ozen,D (2430) Konya 2019}) 13... c5 {[%emt 0:04:30]} 14. Ng5 {[%emt 0:11:30]} b5 {[%emt 0:11:30]} 15. f3 {[%emt 0:05:30]} Bd7 {[%emt 0:00:30]} 16. g4 {[%emt 0:00:00]} Rc8 {[%emt 0:06:30]} 17. Bf4 {[%emt 0:06:00] White wants to play Be5.} Re8 $2 {[%emt 0:07:30] Loses the game.} (17... c4 $11) 18. Be5 $1 $18 {[%emt 0:03:30]} h6 {[%emt 0:04:30]} 19. Qf4 $1 {[%emt 0:04:30]} Qb6 {[%emt 0:04:30] [#]} (19... hxg5 20. hxg5 Nh5 21. Rxh5 $18) 20. Bh7+ $1 {[%emt 0:04:30][%mdl 512]} Kf8 {[%emt 0:01:30]} 21. Bf5 {[%emt 0:02:30]} (21. Bxf6 Qxf6 22. Qd2 Qc6 $17) 21... Bxf5 {[%emt 0:01:30]} (21... hxg5 22. hxg5 Ng8 23. Bxg7+ Kxg7 24. Rh7+ Kf8 25. Rxf7+ $3 {[%mdl 512]} (25. Bxd7 Qg6 $18) 25... Kxf7 26. Be6+ Kg6 27. Qf5+ Kg7 28. Qf7+ Kh8 29. Rh1+) (21... Red8 {is a better defense.} 22. Bxf6 Bxf6 23. Nh7+ Kg8) 22. Qxf5 {[%emt 0:00:30] Threatens to win with Bxf6.} g6 {[%emt 0:07:42]} (22... hxg5 $2 23. hxg5 g6 24. Rh8+ (24. Bxf6 Bxf6 25. Qxf6 Qxf6 $16) 24... Kg7 25. gxf6+ Bxf6 26. Qxf6+ Qxf6 27. Rxe8 Qxe5 28. R1xe5 $18) 23. Qf4 {[%emt 0:02:30][%cal Og5h7]} Kg8 {[%emt 0:01:06] Prevents Nh7.} (23... hxg5 $2 24. hxg5 Qe6 25. gxf6 Bxf6 26. Bd6+ Kg8 27. Rxe6 $18) 24. b3 {[%emt 0:13:30]} Rc6 {[%emt 0:01:30]} (24... hxg5 $2 25. hxg5 d4 26. Qh2 $18) (24... Qc6 {might work better.} 25. Nxf7 Kxf7) 25. h5 {[%emt 0:06:50]} (25. Nxf7 Kxf7 26. g5 (26. Qxh6 Re6 $16) 26... Re6 $16) 25... hxg5 {[%emt 0:02:48]} (25... Bf8 $142) 26. Qxg5 {[%emt 0:02:02]} Nxh5 {[%emt 0:02:23]} (26... Nd7 {[#]} 27. hxg6 $1 fxg6 28. Rh8+ Kf7 29. Rh7+ Kg8 30. Qh6 Bf8 31. Rg7+ Bxg7 32. Qxg7#) 27. Qh6 {[%emt 0:03:14][%csl Ge5][%cal Rh6h8]} Bf6 {[%emt 0:01:50] Against Qh8+} 28. Bxf6 {[%emt 0:03:13][%cal Re1e8]} Rxe1+ {[%emt 0:00:08]} 29. Rxe1 {[%emt 0:00:05][%csl Gf6][%cal Rh6h8]} Nxf6 {[%emt 0:00:11]} 30. Rh1 {[%emt 0:00:07][%csl Gh1][%cal Rh6h8]} Nh7 {[%emt 0:01:02]} 31. Qxh7+ {[%emt 0:01:14][%mdl 4096] Endgame KQR-KQR} Kf8 {[%emt 0:00:03]} 32. Qh6+ {[%emt 0:01:15]} Ke8 {[%emt 0:04:25]} 33. Qg5 {[%emt 0:00:05]} Rd6 {[%emt 0:01:15]} 34. Qe5+ {[%emt 0:04:01]} (34. Rh7 d4 $16) 34... Re6 {[%emt 0:01:11]} 35. Rh8+ {[%emt 0:00:45]} ({Don't play} 35. Qxd5 Ke7 36. Rh7 (36. Qg5+ Kd7 $18) 36... b4 37. Qg5+ Rf6 38. cxb4 cxb4 $18) 35... Ke7 {[%emt 0:00:24]} 36. Qg5+ {[%emt 0:01:47]} Rf6 {[%emt 0:01:28]} 37. Qxd5 {[%emt 0:00:08] Qa8 is the strong threat.} b4 {[%emt 0:00:37]} 38. Rc8 {[%emt 0:02:22]} ({Less strong is} 38. cxb4 cxb4 39. Ra8 Re6 40. Qg5+ Rf6 41. Qe5+ Re6 $18) 38... bxc3 {[%emt 0:00:46]} 39. Qe5+ {[%emt 0:00:23]} Re6 {[%emt 0:00:31]} 40. Qxc3 {[%emt 0:00:00]} ({Avoid the trap} 40. Rc7+ $2 Kd8 41. Qxc3 Kxc7 $19) 40... Rc6 {[%emt 0:00:00]} 41. Qe5+ {[%emt 0:01:59] Weighted Error Value: White=0.14 (very precise) /Black=0.34} 1-0

[Event "FIDE WSTC-50-65 2022"]
[Site "Acqui Terme"]
[Date "2022.06.28"]
[Round "8.6"]
[White "Giorgadze, Giorgi"]
[Black "Short, Nigel D"]
[Result "1/2-1/2"]
[ECO "D36"]
[WhiteElo "2584"]
[BlackElo "2622"]
[Annotator "TA"]
[PlyCount "84"]
[EventDate "2022.06.20"]
[EventType "team-tourn"]
[EventCountry "ITA"]
[SourceTitle "playchess.com"]
[Source "ChessBase"]
[SourceQuality "1"]
[TimeControl "40/5400+30:1800+30"]

{[%evp 19,84,10,33,10,23,25,26,15,10,-16,-7,-25,-32,-31,-27,-33,-25,-35,-29,-43,-37,-47,-34,-47,-30,-52,-15,-15,-3,-7,0,-31,-16,-30,-25,-32,-6,-11,-13,-78,-67,-75,-70,-82,-39,-30,-40,-41,-8,-29,0,0,0,0,0,0,0,0,0,-7,0,0,0,0,0,0,0]} 1. d4 {[%emt 0:01:00]} Nf6 {[%emt 0:01:00]} 2. Nf3 {[%emt 0:00:30]} d5 {[%emt 0:00:30]} 3. c4 {[%emt 0:01:30]} e6 {[%emt 0:00:00]} 4. Nc3 {[%emt 0:00:30]} Nbd7 {[%emt 0:02:00]} 5. cxd5 {[%emt 0:03:30]} exd5 {[%emt 0:00:30]} 6. Bg5 {[%emt 0:01:30]} Be7 {[%emt 0:03:30]} 7. e3 {[%emt 0:00:30]} O-O {[%emt 0:01:30]} 8. Bd3 {[%emt 0:00:30]} c6 {[%emt 0:00:30]} 9. Qc2 {[%emt 0:01:30]} Re8 {[%emt 0:00:00]} 10. h3 {[%emt 0:02:30]} Nf8 {[%emt 0:00:00]} 11. Ne5 {[%emt 0:12:30] D36: Queen's Gambit Declined: Exchange Variation: Main line (5 Bg5 c6 6 Qc2).} N6d7 {[%emt 0:01:30] [#] aiming for ...Nxe5.} 12. Bxe7 {[%emt 0:05:30]} Qxe7 {[%emt 0:00:30]} 13. Nxd7 {[%emt 0:03:30] White has an edge.} Bxd7 {[%emt 0:00:30] [#]} 14. Bf5 $146 {[%emt 0:00:30]} ({Predecessor:} 14. O-O Ng6 15. b4 Nh4 16. Ne2 Qg5 17. Ng3 h5 18. Kh2 a5 19. bxa5 Rxa5 20. a4 {½-½ (58) Vasovski,N (2358)-Mitkov,M (2382) Struga 2009}) 14... Rad8 {[%emt 0:07:30]} 15. O-O-O {[%emt 0:01:30]} Bxf5 {[%emt 0:06:30]} 16. Qxf5 {[%emt 0:00:30]} Nd7 {[%emt 0:00:30][%cal Bf8d7,Bd7b6,Bb6c4][%mdl 32]} 17. Rhe1 {[%emt 0:04:30]} g6 {[%emt 0:00:30]} 18. Qc2 {[%emt 0:06:30]} Nb6 {[%emt 0:01:30]} 19. Kb1 {[%emt 0:06:30]} Nc4 {[%emt 0:01:30]} 20. e4 {[%emt 0:01:30]} b5 {[%emt 0:02:30]} 21. Re2 {[%emt 0:02:30]} dxe4 {[%emt 0:04:30]} 22. Nxe4 {[%emt 0:04:30]} f5 {[%emt 0:01:30]} 23. Nc3 {[%emt 0:02:30]} Qf7 {[%emt 0:03:30]} 24. Rxe8+ {[%emt 0:08:30]} Rxe8 {[%emt 0:00:30]} 25. Qd3 {[%emt 0:00:30]} Rd8 {[%emt 0:01:30]} 26. Qe2 {[%emt 0:12:07][%cal Od4d5]} Nb6 {[%emt 0:05:30] [#] Hoping for ...b4.} 27. Qf3 {[%emt 0:00:49]} b4 {[%emt 0:01:30]} 28. Ne2 {[%emt 0:00:32]} c5 {[%emt 0:00:00]} 29. g4 {[%emt 0:02:27]} (29. Qb3 $11 {remains equal.}) 29... fxg4 $17 {[%emt 0:25:00]} 30. Qxf7+ {[%emt 0:00:32]} Kxf7 {[%emt 0:00:00]} 31. hxg4 {[%emt 0:00:13][%mdl 4096] Endgame KRN-KRN} h5 {[%emt 0:00:00]} 32. gxh5 {[%emt 0:01:40]} gxh5 {[%emt 0:00:00]} 33. Kc2 {[%emt 0:03:28]} Rd5 {[%emt 0:01:00]} 34. Kd3 {[%emt 0:01:25]} cxd4 {[%emt 0:01:30]} 35. Ke4 {[%emt 0:01:46] The position is equal.} Kf6 {[%emt 0:00:30]} 36. Rxd4 {[%emt 0:03:08]} Rxd4+ {[%emt 0:00:30]} 37. Nxd4 $11 {[%emt 0:00:10] KN-KN} Na4 {[%emt 0:00:30]} 38. Nc6 {[%emt 0:02:19]} Nxb2 {[%emt 0:00:00][%cal Oa7a5] Strongly threatening ...a5!} 39. Nxb4 {[%emt 0:00:25]} Nd1 {[%emt 0:01:00]} 40. Nd5+ {[%emt 0:00:00]} Ke6 {[%emt 0:00:00]} (40... Kg6 $5 {[%cal Rd1f2]}) 41. Nf4+ {[%emt 0:05:59]} Kd6 {[%emt 0:01:00]} 42. Nxh5 {[%emt 0:00:30]} Nxf2+ {Weighted Error Value: White=0.11 (very precise) /Black=0.09 (flawless)} 1/2-1/2